fUSD/lending_fUSD_20240702
["ID","MTS","AMOUNT","RATE_DAILY","PERIOD"]
[330866343,1719885041511,-190.517987,0.00021161,2]
[330866344,1719885041520,-195.528457,0.00021161,2]
[330866345,1719885041529,-161.04,0.00021175,2]
[330866346,1719885041539,-161.04,0.00021281,2]
[330866347,1719885041549,-797.58605,0.00021282,2]
[330866348,1719885041559,-1164.987142,0.00021282,2]
[330866349,1719885041568,-1411.895834,0.00021282,2]
[330866350,1719885041578,-196.227464,0.00021282,2]
[330866351,1719885041588,-815.67,0.00021369,9]
[330866352,1719885041809,-152.0,0.00021451,3]
[330866353,1719885041820,-10181.70304266,0.00021464,2]
[330866354,1719885041830,-581.04303693,0.00021464,2]
[330866355,1719885041839,-150.38877794,0.00021507,2]
[330866356,1719885041849,-853.94,0.00021534,2]
[330866357,1719885041859,-418.94,0.00021534,2]
[330866358,1719885041868,-418.94,0.00021534,2]
[330866359,1719885041877,-853.94,0.00021534,2]
[330866360,1719885041887,-853.94,0.00021534,2]
[330866361,1719885041896,-418.94,0.00021534,2]
[330866362,1719885041906,-797.58605,0.00021541,2]
[330866363,1719885041915,-1164.987142,0.00021541,2]
[330866364,1719885041924,-1411.895834,0.00021541,2]
[330866365,1719885041934,-196.227464,0.00021541,2]
[330866366,1719885041943,-961.03175427,0.00021634,2]
[330866367,1719885041952,-815.67,0.00021643,11]
[330866368,1719885041962,-161.53,0.00021644,2]
[330866369,1719885041971,-375.26,0.00021644,2]
[330866370,1719885041982,-528.33,0.00021671,2]
[330866371,1719885041991,-300.39,0.00021671,2]
[330866372,1719885042002,-164.87,0.00021671,2]
[330866373,1719885042011,-150.77,0.00021671,2]
[330866374,1719885042020,-153.01,0.00021671,2]
[330866375,1719885042029,-354.77,0.00021671,2]
[330866376,1719885042039,-424.24,0.00021671,2]
[330866377,1719885042048,-150.67,0.00021671,2]
[330866378,1719885042057,-151.65,0.00021671,2]
[330866379,1719885042067,-150.0,0.00021671,2]
[330866380,1719885042076,-424.24,0.00021671,2]
[330866381,1719885042086,-150.0,0.00021671,2]
[330866382,1719885042095,-150.0,0.00021671,2]
[330866383,1719885042104,-150.0,0.00021671,2]
[330866384,1719885042113,-150.0,0.00021671,2]
[330866385,1719885042122,-528.33,0.00021671,2]
[330866386,1719885042132,-354.77,0.00021671,2]
[330866387,1719885042143,-164.82,0.00021671,2]
[330866388,1719885042157,-150.0,0.00021671,2]
[330866389,1719885042166,-528.33,0.00021671,2]
[330866390,1719885042176,-424.24,0.00021671,2]
[330866391,1719885042185,-150.0,0.00021671,2]
[330866392,1719885042194,-150.0,0.00021671,2]
[330866393,1719885042203,-150.0,0.00021671,2]
[330866394,1719885042213,-150.0,0.00021671,2]
[330866395,1719885042222,-164.82,0.00021671,2]
[330866396,1719885042233,-354.77,0.00021671,2]
[330866397,1719885042248,-150.38877794,0.00021699,2]
[330866398,1719885042257,-1005.0,0.000217,2]
[330866399,1719885042267,-797.58605,0.00021801,2]
[330866400,1719885042276,-1164.987142,0.00021801,2]
[330866401,1719885042285,-1411.895834,0.00021801,2]
[330866402,1719885042294,-196.227464,0.00021801,2]
[330866403,1719885042303,-190.517987,0.00021803,2]
[330866404,1719885042313,-195.528457,0.00021803,2]
[330866405,1719885042322,-158.77352333,0.00021836,2]
[330866406,1719885042331,-150.38877794,0.00021863,2]
[330866407,1719885042340,-815.67,0.00021917,13]
[330866408,1719885042349,-392.12,0.00021918,2]
[330866409,1719885042358,-178.63,0.00021918,2]
[330866410,1719885042368,-151.0,0.00021918,2]
[330866411,1719885042377,-151.0,0.00021918,2]
[330866412,1719885042387,-1091.56197087,0.00021952,2]
[330866413,1719885042396,-500.0,0.00022,2]
[330866414,1719885042406,-1218.8473656,0.00022,23]
[330866415,1719885042416,-792.99382456,0.00022,2]
[330866416,1719885042425,-279.50060283,0.00022,2]
[330866417,1719885042434,-552.0,0.00022,18]
[330866418,1719885042443,-165.59222527,0.00022001,2]
[330866419,1719885042452,-150.38877794,0.00022055,5]
[330866420,1719885042462,-5000.0,0.00022059,2]
[330866421,1719885042471,-6100.0,0.00022068,7]
[330866422,1719885042480,-5000.0,0.00022079,2]
[330866423,1719885042489,-1000.0,0.000221,2]
[330866424,1719885042499,-3217.16872116,0.000221,5]
[330866425,1719885042508,-3339.75,0.00022102,2]
[330866426,1719885042517,-5000.0,0.00022127,2]
[330866427,1719885042527,-158.77352333,0.00022137,5]
[330866428,1719885042536,-5000.0,0.00022137,2]
[330866429,1719885042545,-500.93240674,0.00022142,2]
[330866430,1719885042555,-895.93,0.0002216,2]
[330866431,1719885042564,-806.53494383,0.00022163,2]
[330866432,1719885042573,-150.62302,0.00022176,2]
[330866433,1719885042582,-841.22488,0.0002218,2]
[330866434,1719885042591,-815.67,0.00022191,15]
[330866435,1719885042600,-5000.0,0.00022191,2]
[330866436,1719885042610,-163.22380564,0.00022199,7]
[330866437,1719885042619,-32748.00920385,0.000222,2]
[330866438,1719885042628,-50050.0,0.000222,2]
[330866439,1719885042637,-151.0,0.000222,7]
[330866440,1719885042647,-152.528589,0.000222,7]
[330866441,1719885042657,-151.0,0.000222,7]
[330866442,1719885042667,-151.0,0.000222,7]
[330866443,1719885042678,-151.0,0.000222,7]
[330866444,1719885042688,-208.993375,0.000222,7]
[330866445,1719885042698,-151.0,0.000222,7]
[330866446,1719885042707,-5000.0,0.00022201,2]
[330866447,1719885042716,-151.0,0.00022201,7]
[330866448,1719885042726,-151.0,0.00022201,7]
[330866449,1719885042735,-841.22489,0.0002221,2]
[330866450,1719885042746,-619.80912686,0.00022226,2]
[330866451,1719885042755,-500.0,0.00022226,2]
[330866452,1719885042765,-5000.0,0.00022232,2]
[330866453,1719885042774,-206.62707,0.00022232,7]
[330866454,1719885042784,-206.62707,0.00022232,7]
[330866455,1719885042793,-151.0,0.00022232,7]
[330866456,1719885042803,-5000.0,0.00022234,2]
[330866457,1719885042813,-3674.93,0.00022241,2]
[330866458,1719885042822,-5000.0,0.00022243,2]
[330866459,1719885042832,-150.38877794,0.00022247,5]
[330866460,1719885042842,-1866.16,0.00022248,2]
[330866461,1719885042852,-1518.12886528,0.0002226,2]
[330866462,1719885042861,-5000.0,0.00022266,2]
[330866463,1719885042871,-5000.0,0.00022269,2]
[330866464,1719885042880,-5000.0,0.00022272,2]
[330866465,1719885042889,-5000.0,0.00022275,2]
[330866466,1719885042899,-841.22488,0.0002229,2]
[330866467,1719885042908,-215.45,0.000223,2]
[330866468,1719885042917,-28543.4842,0.000223,2]
[330866469,1719885042927,-100000.0,0.000223,2]
[330866470,1719885042936,-24640.726647,0.000223,2]
[330866471,1719885042946,-166.365624,0.000223,7]
[330866472,1719885042956,-151.0,0.000223,7]
[330866473,1719885042966,-151.0,0.000223,7]
[330866474,1719885042976,-236.242238,0.000223,7]
[330866475,1719885042985,-5000.0,0.00022305,2]
[330866476,1719885042995,-25000.0,0.00022308,2]
[330866478,1719885043005,-328.08836338,0.00022317,120]
[330866480,1719885043015,-328.08836338,0.00022317,120]
[330866482,1719885043024,-500.0,0.00022318,2]
[330866485,1719885043034,-200.0,0.00022318,2]
[330866487,1719885043043,-500.0,0.00022319,2]
[330866489,1719885043053,-500.0,0.00022319,2]
[330866491,1719885043063,-200.0,0.00022319,2]
[330866494,1719885043073,-2888.75,0.0002232,2]
[330866495,1719885043083,-5000.0,0.00022327,2]
[330866497,1719885043093,-4618.37,0.00022359,2]
[330866500,1719885043103,-841.22488,0.0002236,2]
[330866501,1719885043114,-1000.0,0.00022361,2]
[330866502,1719885043123,-3678.90416186,0.00022365,2]
[330866522,1719885043472,-17111.53553814,0.00022365,2]
[330866524,1719885043482,-151.0,0.00022365,7]
[330866526,1719885043491,-151.0,0.00022365,7]
[330866528,1719885043502,-5000.0,0.00022372,2]
[330866530,1719885043511,-5000.0,0.00022389,2]
[330866532,1719885043520,-151.0,0.00022389,7]
[330866534,1719885043529,-151.0,0.00022389,7]
[330866536,1719885043538,-38839.19291277,0.00022398,5]
[330866538,1719885043547,-151.0,0.00022398,7]
[330866539,1719885043556,-152.528589,0.00022398,7]
[330866541,1719885043566,-151.0,0.00022398,7]
[330866543,1719885043575,-151.0,0.00022398,7]
[330866544,1719885043584,-151.0,0.00022398,7]
[330866545,1719885043593,-151.0,0.00022398,7]
[330866546,1719885043602,-206.62707,0.00022398,7]
[330866547,1719885043611,-206.62707,0.00022398,7]
[330866548,1719885043620,-209.566694,0.00022398,7]
[330866549,1719885043629,-1000.0,0.00022399,2]
[330866550,1719885043638,-2000.0,0.000224,2]
[330866551,1719885043647,-200.0,0.000224,2]
[330866552,1719885043656,-1011.0,0.000224,10]
[330866553,1719885043665,-10181.70304266,0.000224,2]
[330866554,1719885043675,-961.03175427,0.000224,2]
[330866555,1719885043684,-581.04303693,0.000224,2]
[330866556,1719885043693,-841.22488,0.000224,2]
[330866557,1719885043702,-841.22488,0.000224,2]
[330866558,1719885043711,-150.0,0.000224,3]
[330866559,1719885043720,-12618.51721493,0.000224,2]
[330866560,1719885043729,-239.65,0.000224,31]
[330866561,1719885043738,-759.5050055,0.000224,2]
[330866562,1719885043748,-523.25,0.00022406,2]
[330866563,1719885043757,-150.38877794,0.00022411,5]
[330866564,1719885043767,-2509.42,0.00022412,2]
[330866565,1719885043776,-5000.0,0.00022421,2]
[330866566,1719885043785,-2282.94691963,0.00022429,2]
[330866567,1719885043794,-5000.0,0.00022441,2]
[330866568,1719885043804,-190.974127,0.00022444,2]
[330866569,1719885043813,-204.118583,0.00022444,2]
[330866570,1719885043822,-190.517987,0.00022444,2]
[330866571,1719885043831,-195.528457,0.00022444,2]
[330866572,1719885043840,-5000.0,0.00022447,2]
[330866573,1719885043849,-157.07021,0.00022448,2]
[330866574,1719885043858,-157.07021,0.00022448,2]
[330866575,1719885043867,-157.07021,0.00022448,2]
[330866576,1719885043876,-157.07021,0.00022448,2]
[330866577,1719885043885,-157.07021,0.00022448,2]
[330866578,1719885043895,-157.07021,0.00022448,2]
[330866579,1719885043903,-157.07021,0.00022448,2]
[330866580,1719885043912,-157.07021,0.00022448,2]
[330866581,1719885043921,-244.07021,0.00022448,2]
[330866582,1719885043931,-5000.0,0.00022452,2]
[330866583,1719885043940,-5000.0,0.00022458,2]
[330866584,1719885043949,-501.59714191,0.00022465,4]
[330866585,1719885043958,-500.43890599,0.00022465,4]
[330866586,1719885043968,-501.02023139,0.00022465,4]
[330866587,1719885043978,-501.77955212,0.00022465,4]
[330866588,1719885043988,-501.4111246,0.00022465,4]
[330866589,1719885043998,-502.03243366,0.00022465,4]
[330866590,1719885044007,-501.94420904,0.00022465,4]
[330866591,1719885044017,-502.2168566,0.00022465,4]
[330866592,1719885044026,-501.61617378,0.00022465,4]
[330866593,1719885044035,-200.57430844,0.00022465,4]
[330866594,1719885044045,-500.95192414,0.00022465,4]
[330866595,1719885044054,-501.97586785,0.00022465,4]
[330866596,1719885044063,-501.21006772,0.00022465,4]
[330866597,1719885044072,-256.29659067,0.00022465,4]
[330866598,1719885044083,-500.0,0.00022465,4]
[330866600,1719885044092,-504.20121397,0.00022465,4]
[330866601,1719885044102,-565.94929904,0.00022465,4]
[330866602,1719885044112,-500.0,0.00022465,4]
[330866603,1719885044121,-541.7391509,0.00022465,4]
[330866604,1719885044131,-500.0,0.00022465,4]
[330866605,1719885044142,-501.8893821,0.00022465,4]
[330866606,1719885044154,-500.0,0.00022465,4]
[330866607,1719885044163,-519.27521329,0.00022465,4]
[330866608,1719885044173,-500.0,0.00022465,4]
[330866609,1719885044182,-502.06189018,0.00022465,4]
[330866610,1719885044191,-501.95494207,0.00022465,4]
[330866611,1719885044202,-504.98128819,0.00022465,4]
[330866612,1719885044210,-501.87602456,0.00022465,4]
[330866613,1719885044220,-503.18764079,0.00022465,4]
[330866614,1719885044231,-501.59011882,0.00022465,4]
[330866615,1719885044241,-500.0,0.00022465,4]
[330866616,1719885044252,-500.82548555,0.00022465,4]
[330866617,1719885044261,-607.33801773,0.00022465,4]
[330866618,1719885044275,-501.47230117,0.00022465,4]
[330866619,1719885044284,-636.00965248,0.00022465,4]
[330866620,1719885044294,-504.96077288,0.00022465,4]
[330866621,1719885044304,-523.82629723,0.00022465,4]
[330866622,1719885044313,-502.09118383,0.00022465,4]
[330866623,1719885044323,-500.7912454,0.00022465,4]
[330866624,1719885044332,-499.68937165,0.00022465,4]
[330866625,1719885044342,-500.0,0.00022465,4]
[330866626,1719885044351,-501.34696092,0.00022465,4]
[330866627,1719885044360,-506.15618738,0.00022465,4]
[330866628,1719885044370,-500.62364054,0.00022465,4]
[330866629,1719885044380,-501.98263907,0.00022465,4]
[330866630,1719885044389,-502.61224155,0.00022465,4]
[330866631,1719885044398,-501.92022009,0.00022465,4]
[330866632,1719885044407,-501.24023447,0.00022465,4]
[330866633,1719885044417,-500.0,0.00022465,4]
[330866634,1719885044427,-392.62971182,0.00022465,4]
[330866635,1719885044437,-500.79668433,0.00022465,4]
[330866636,1719885044447,-503.66559745,0.00022465,4]
[330866637,1719885044457,-500.0,0.00022465,4]
[330866638,1719885044468,-500.0,0.00022465,4]
[330866639,1719885044480,-245.79793933,0.00022465,4]
[330866640,1719885044490,-500.0,0.00022465,4]
[330866641,1719885044502,-348.13102748,0.00022465,4]
[330866642,1719885044511,-500.0,0.00022465,4]
[330866643,1719885044520,-230.26319888,0.00022465,4]
[330866644,1719885044529,-502.09081627,0.00022465,4]
[330866645,1719885044538,-545.6559275,0.00022465,4]
[330866646,1719885044548,-500.64968422,0.00022465,4]
[330866647,1719885044558,-501.16390149,0.00022465,4]
[330866648,1719885044567,-500.0,0.00022465,4]
[330866649,1719885044578,-500.0,0.00022465,4]
[330866650,1719885044727,-257.96051282,0.00022465,4]
[330866651,1719885044769,-568.7843966,0.00022465,4]
[330866652,1719885044779,-382.68790559,0.00022465,4]
[330866653,1719885044789,-501.22977661,0.00022465,4]
[330866654,1719885044798,-502.52993713,0.00022465,4]
[330866655,1719885044808,-500.0,0.00022465,4]
[330866656,1719885044817,-488.22035122,0.00022465,4]
[330866657,1719885044826,-500.0,0.00022465,4]
[330866658,1719885044836,-459.87723628,0.00022465,4]
[330866659,1719885044845,-469.68369976,0.00022465,4]
[330866660,1719885044854,-438.08976892,0.00022465,4]
[330866661,1719885044864,-500.0,0.00022465,4]
[330866662,1719885044874,-500.0,0.00022465,4]
[330866663,1719885044884,-582.65479026,0.00022465,4]
[330866664,1719885044894,-592.8418442,0.00022465,4]
[330866665,1719885044903,-524.20294702,0.00022465,4]
[330866666,1719885044913,-500.0,0.00022465,4]
[330866667,1719885044923,-307.64776572,0.00022465,4]
[330866668,1719885044934,-389.46531124,0.00022465,4]
[330866669,1719885044943,-500.0,0.00022465,4]
[330866670,1719885044953,-592.19092529,0.00022465,4]
[330866671,1719885044964,-503.05415196,0.00022465,4]
[330866672,1719885044974,-501.28641315,0.00022465,4]
[330866673,1719885044984,-501.93434681,0.00022465,4]
[330866674,1719885044993,-502.96075068,0.00022465,4]
[330866675,1719885045004,-506.90749346,0.00022465,4]
[330866676,1719885045013,-500.0,0.00022465,4]
[330866677,1719885045023,-195.82241539,0.00022465,4]
[330866678,1719885045031,-500.0,0.00022465,4]
[330866679,1719885045042,-500.0,0.00022465,4]
[330866680,1719885045052,-164.85360368,0.00022465,4]
[330866681,1719885045065,-501.47634305,0.00022465,4]
[330866682,1719885045075,-501.63069472,0.00022465,4]
[330866683,1719885045084,-536.29719591,0.00022465,4]
[330866684,1719885045094,-501.15384264,0.00022465,4]
[330866685,1719885045103,-500.0,0.00022465,4]
[330866686,1719885045113,-519.26560661,0.00022465,4]
[330866687,1719885045122,-501.81614374,0.00022465,4]
[330866688,1719885045132,-503.19280461,0.00022465,4]
[330866689,1719885045146,-536.85290808,0.00022465,4]
[330866690,1719885045157,-506.64704449,0.00022465,4]
[330866691,1719885045167,-501.11916238,0.00022465,4]
[330866692,1719885045176,-501.96976004,0.00022465,4]
[330866693,1719885045188,-500.0,0.00022465,4]
[330866694,1719885045197,-489.17246786,0.00022465,4]
[330866695,1719885045207,-501.4695374,0.00022465,4]
[330866696,1719885045216,-501.81251138,0.00022465,4]
[330866697,1719885045227,-510.01100896,0.00022465,4]
[330866698,1719885045237,-503.63331205,0.00022465,4]
[330866699,1719885045247,-503.46893254,0.00022465,4]
[330866700,1719885045257,-500.0,0.00022465,4]
[330866701,1719885045267,-500.0,0.00022465,4]
[330866702,1719885045276,-410.9623477,0.00022465,4]
[330866703,1719885045286,-500.63531932,0.00022465,4]
[330866704,1719885045295,-501.46224078,0.00022465,4]
[330866705,1719885045305,-502.07923228,0.00022465,4]
[330866706,1719885045314,-504.86187439,0.00022465,4]
[330866707,1719885045324,-500.0,0.00022465,4]
[330866708,1719885045334,-615.37139962,0.00022465,4]
[330866709,1719885045343,-503.64419944,0.00022465,4]
[330866710,1719885045352,-501.99345069,0.00022465,4]
[330866711,1719885045362,-506.58199441,0.00022465,4]
[330866712,1719885045371,-501.41754853,0.00022465,4]
[330866713,1719885045381,-500.0,0.00022465,4]
[330866714,1719885045390,-257.12164347,0.00022465,4]
[330866715,1719885045401,-501.50214587,0.00022465,4]
[330866716,1719885045410,-500.0,0.00022465,4]
[330866717,1719885045420,-644.18873393,0.00022465,4]
[330866718,1719885045429,-508.25747179,0.00022465,4]
[330866719,1719885045439,-502.42121309,0.00022465,4]
[330866720,1719885045448,-502.63341744,0.00022465,4]
[330866721,1719885045458,-503.76915755,0.00022465,4]
[330866722,1719885045467,-521.9998665,0.00022465,4]
[330866723,1719885045476,-502.90952945,0.00022465,4]
[330866724,1719885045486,-501.57449624,0.00022465,4]
[330866725,1719885045496,-500.0,0.00022465,4]
[330866726,1719885045506,-522.11308265,0.00022465,4]
[330866727,1719885045515,-500.0,0.00022465,4]
[330866728,1719885045524,-473.15333231,0.00022465,4]
[330866729,1719885045534,-174.6482153,0.00022465,4]
[330866730,1719885045544,-500.0,0.00022465,4]
[330866731,1719885045553,-402.81151935,0.00022465,4]
[330866732,1719885045563,-500.2025521,0.00022465,4]
[330866733,1719885045572,-500.0,0.00022465,4]
[330866734,1719885045581,-500.0,0.00022465,4]
[330866735,1719885045590,-548.53313329,0.00022465,4]
[330866736,1719885045600,-503.70358399,0.00022465,4]
[330866737,1719885045609,-501.3283655,0.00022465,4]
[330866738,1719885045619,-504.48381552,0.00022465,4]
[330866739,1719885045628,-500.50051394,0.00022465,4]
[330866740,1719885045638,-503.03815957,0.00022465,4]
[330866741,1719885045647,-502.92632669,0.00022465,4]
[330866742,1719885045657,-568.28901932,0.00022465,4]
[330866743,1719885045666,-501.29934838,0.00022465,4]
[330866744,1719885045675,-500.0,0.00022465,4]
[330866745,1719885045685,-299.75840906,0.00022465,4]
[330866746,1719885045694,-500.0,0.00022465,4]
[330866747,1719885045704,-500.0,0.00022465,4]
[330866748,1719885045713,-500.67008212,0.00022465,4]
[330866749,1719885045722,-612.90203118,0.00022465,4]
[330866750,1719885045732,-500.0,0.00022465,4]
[330866751,1719885045741,-468.39256972,0.00022465,4]
[330866752,1719885045751,-500.0,0.00022465,4]
[330866753,1719885045762,-374.07266638,0.00022465,4]
[330866754,1719885045771,-169.57207124,0.00022465,4]
[330866755,1719885045781,-500.0,0.00022465,4]
[330866756,1719885045791,-339.59712944,0.00022465,4]
[330866757,1719885045800,-500.0,0.00022465,4]
[330866758,1719885045809,-558.9399805,0.00022465,4]
[330866759,1719885045819,-500.0,0.00022465,4]
[330866760,1719885045828,-567.93083489,0.00022465,4]
[330866761,1719885045838,-483.86239181,0.00022465,4]
[330866762,1719885045848,-514.44646999,0.00022465,4]
[330866763,1719885045857,-500.0,0.00022465,4]
[330866764,1719885045867,-500.0,0.00022465,4]
[330866765,1719885045876,-465.27110375,0.00022465,4]
[330866766,1719885045886,-500.0,0.00022465,4]
[330866767,1719885045896,-500.0,0.00022465,4]
[330866768,1719885045905,-168.95165607,0.00022465,4]
[330866769,1719885045915,-637.66808962,0.00022465,4]
[330866770,1719885045924,-503.42294635,0.00022465,4]
[330866771,1719885045934,-500.79661807,0.00022465,4]
[330866772,1719885045943,-500.63537297,0.00022465,4]
[330866773,1719885045952,-500.0,0.00022465,4]
[330866774,1719885045962,-500.0,0.00022465,4]
[330866775,1719885045971,-500.0,0.00022465,4]
[330866777,1719885045980,-500.0,0.00022465,4]
[330866778,1719885045989,-500.0,0.00022465,4]
[330866780,1719885045999,-275.11734417,0.00022465,4]
[330866782,1719885046008,-500.0,0.00022465,4]
[330866784,1719885046017,-506.9865975,0.00022465,4]
[330866785,1719885046027,-501.52658541,0.00022465,4]
[330866786,1719885046036,-501.67144166,0.00022465,4]
[330866787,1719885046045,-501.80551227,0.00022465,4]
[330866788,1719885046055,-500.0,0.00022465,4]
[330866789,1719885046064,-445.18472091,0.00022465,4]
[330866790,1719885046074,-578.04418346,0.00022465,4]
[330866791,1719885046083,-505.84006313,0.00022465,4]
[330866792,1719885046092,-501.13549401,0.00022465,4]
[330866793,1719885046102,-500.0,0.00022465,4]
[330866794,1719885046111,-500.0,0.00022465,4]
[330866795,1719885046120,-443.72179347,0.00022465,4]
[330866796,1719885046129,-572.52235711,0.00022465,4]
[330866797,1719885046139,-501.44089493,0.00022465,4]
[330866798,1719885046148,-500.33570458,0.00022465,4]
[330866799,1719885046160,-504.22666562,0.00022465,4]
[330866800,1719885046169,-501.16443516,0.00022465,4]
[330866801,1719885046178,-502.09616511,0.00022465,4]
[330866802,1719885046188,-279.15809368,0.00022465,4]
[330866803,1719885046198,-500.0,0.00022465,4]
[330866804,1719885046207,-223.71851383,0.00022465,4]
[330866805,1719885046217,-507.49217519,0.00022465,4]
[330866806,1719885046228,-504.02614395,0.00022465,4]
[330866807,1719885046238,-500.0,0.00022465,4]
[330866808,1719885046248,-500.0,0.00022465,4]
[330866809,1719885046258,-503.79608635,0.00022465,4]
[330866810,1719885046267,-240.65340578,0.00022465,4]
[330866811,1719885046276,-503.58936826,0.00022465,4]
[330866812,1719885046286,-502.03672159,0.00022465,4]
[330866813,1719885046295,-501.1970067,0.00022465,4]
[330866814,1719885046304,-500.0,0.00022465,4]
[330866815,1719885046314,-271.44649018,0.00022465,4]
[330866816,1719885046323,-500.0,0.00022465,4]
[330866817,1719885046333,-502.03540165,0.00022465,4]
[330866818,1719885046342,-374.26973654,0.00022465,4]
[330866819,1719885046352,-500.0,0.00022465,4]
[330866820,1719885046361,-503.82006319,0.00022465,4]
[330866821,1719885046371,-550.65073806,0.00022465,4]
[330866822,1719885046379,-500.0,0.00022465,4]
[330866823,1719885046388,-500.0,0.00022465,4]
[330866824,1719885046398,-550.02031805,0.00022465,4]
[330866825,1719885046407,-603.46425743,0.00022465,4]
[330866826,1719885046417,-500.0,0.00022465,4]
[330866827,1719885046427,-505.04519061,0.00022465,4]
[330866828,1719885046436,-502.5273031,0.00022465,4]
[330866829,1719885046445,-503.6323339,0.00022465,4]
[330866830,1719885046455,-575.79933836,0.00022465,4]
[330866831,1719885046464,-500.0,0.00022465,4]
[330866832,1719885046473,-241.15150356,0.00022465,4]
[330866833,1719885046482,-500.0,0.00022465,4]
[330866834,1719885046491,-500.0,0.00022465,4]
[330866835,1719885046502,-500.0,0.00022465,4]
[330866836,1719885046511,-500.73647125,0.00022465,4]
[330866837,1719885046520,-500.0,0.00022465,4]
[330866838,1719885046529,-500.0,0.00022465,4]
[330866839,1719885046539,-510.24133543,0.00022465,4]
[330866840,1719885046548,-457.17417123,0.00022465,4]
[330866841,1719885046557,-501.10660324,0.00022465,4]
[330866842,1719885046567,-500.0,0.00022465,4]
[330866843,1719885046576,-502.71938222,0.00022465,4]
[330866844,1719885046585,-504.12844665,0.00022465,4]
[330866845,1719885046595,-500.0,0.00022465,4]
[330866846,1719885046604,-519.47637961,0.00022465,4]
[330866847,1719885046614,-501.59363382,0.00022465,4]
[330866848,1719885046624,-500.0,0.00022465,4]
[330866849,1719885046634,-586.42975588,0.00022465,4]
[330866850,1719885046644,-500.0,0.00022465,4]
[330866851,1719885046653,-501.05449431,0.00022465,4]
[330866852,1719885046662,-500.0,0.00022465,4]
[330866853,1719885046672,-500.0,0.00022465,4]
[330866854,1719885046681,-500.0,0.00022465,4]
[330866855,1719885046691,-544.92855088,0.00022465,4]
[330866856,1719885046700,-500.0,0.00022465,4]
[330866857,1719885046710,-635.33132674,0.00022465,4]
[330866858,1719885046719,-500.70093466,0.00022465,4]
[330866859,1719885046729,-500.0,0.00022465,4]
[330866860,1719885046739,-504.32249475,0.00022465,4]
[330866861,1719885046750,-500.0,0.00022465,4]
[330866862,1719885046759,-500.0,0.00022465,4]
[330866863,1719885046768,-500.0,0.00022465,4]
[330866864,1719885046777,-500.0,0.00022465,4]
[330866865,1719885046786,-500.0,0.00022465,4]
[330866866,1719885046795,-390.91581437,0.00022465,4]
[330866867,1719885046805,-224.20130664,0.00022465,4]
[330866868,1719885046814,-500.0,0.00022465,4]
[330866869,1719885046823,-500.0,0.00022465,4]
[330866870,1719885046833,-331.90289982,0.00022465,4]
[330866871,1719885046842,-500.0,0.00022465,4]
[330866872,1719885046851,-500.0,0.00022465,4]
[330866873,1719885046860,-500.0,0.00022465,4]
[330866874,1719885046870,-430.06964041,0.00022465,4]
[330866875,1719885046879,-500.0,0.00022465,4]
[330866876,1719885046888,-500.0,0.00022465,4]
[330866877,1719885046898,-485.68892812,0.00022465,4]
[330866878,1719885046907,-500.0,0.00022465,4]
[330866879,1719885046916,-503.86470021,0.00022465,4]
[330866880,1719885046926,-502.69929509,0.00022465,4]
[330866881,1719885046935,-500.0,0.00022465,4]
[330866882,1719885046944,-504.85162596,0.00022465,4]
[330866883,1719885046954,-501.3244817,0.00022465,4]
[330866884,1719885046963,-510.19625371,0.00022465,4]
[330866885,1719885046972,-502.00150843,0.00022465,4]
[330866886,1719885046982,-500.0,0.00022465,4]
[330866887,1719885046991,-500.0,0.00022465,4]
[330866888,1719885047001,-500.0,0.00022465,4]
[330866889,1719885047010,-369.91130098,0.00022465,4]